[Event "Irish Championship 2026"]
[Site "Talbot Hotel Stillorgan, Co.Dublin, IE"]
[Date "2026.08.08"]
[Round "8"]
[White "Fitzgerald, Niall"]
[Black "Freeman, Gordon"]
[Result "1-0"]
[Board "16"]
[TimeControl "40/5400+30:1800+30"]
[WhiteFideId "2511185"]
[BlackFideId "2501309"]
[WhiteElo "1894"]
[BlackElo "2068"]
[BlackTitle "FM"]
[WhiteClock "0:01:25"]
[BlackClock "0:12:51"]
[Variant "Standard"]
[EndDate "2026.08.08"]
[EndTime "19:24:49"]

1. e4 {[%clk 1:30:44]}  c5 {[%clk 1:30:55]} 2. Nf3 {[%clk 1:31:08]}  Nc6 {[%clk 1:31:21]} 3. d4 {[%clk 1:31:31]}  cxd4 {[%clk 1:31:47]}
4. Nxd4 {[%clk 1:31:56]}  g6 {[%clk 1:32:14]} 5. c4 {[%clk 1:32:16]}  Nf6 {[%clk 1:32:38]} 6. Nc3 {[%clk 1:32:40]}  d6 {[%clk 1:33:04]}
7. Be2 {[%clk 1:33:01]}  Nxd4 {[%clk 1:33:27]} 8. Qxd4 {[%clk 1:33:25]}  Bg7 {[%clk 1:33:54]} 9. Be3 {[%clk 1:33:48]}  O-O {[%clk 1:34:18]}
10. Qd2 {[%clk 1:34:13]}  a5 {[%clk 1:34:43]} 11. O-O {[%clk 1:34:33]}  a4 {[%clk 1:35:10]} 12. Bd4 {[%clk 1:34:52]}  Qa5 {[%clk 1:35:09]}
13. Rad1 {[%clk 1:35:01]}  Be6 {[%clk 1:33:24]} 14. Qe3 {[%clk 1:33:13]}  Nd7 {[%clk 1:22:42]} 15. f4 {[%clk 1:29:15]}  Bxd4 {[%clk 1:17:42]}
16. Rxd4 {[%clk 1:27:42]}  Nb8 {[%clk 1:11:15]} 17. f5 {[%clk 1:16:54]}  Nc6 {[%clk 1:02:20]} 18. fxe6 {[%clk 1:05:46]}  Nxd4 {[%clk 1:02:32]}
19. exf7+ {[%clk 1:04:42]}  Rxf7 {[%clk 1:02:47]} 20. Qxd4 {[%clk 1:04:48]}  Rxf1+ {[%clk 1:02:40]} 21. Kxf1 {[%clk 0:52:46]}  Qc5 {[%clk 0:54:29]}
22. Qxc5 {[%clk 0:52:05]}  dxc5 {[%clk 0:54:53]} 23. a3 {[%clk 0:48:34]}  Kf7 {[%clk 0:52:34]} 24. Bd1 {[%clk 0:45:21]}  Rd8 {[%clk 0:52:55]}
25. Ke2 {[%clk 0:45:27]}  Rd4 {[%clk 0:52:17]} 26. Bxa4 {[%clk 0:37:01]}  e6 {[%clk 0:50:56]} 27. Bb5 {[%clk 0:27:35]}  Kf6 {[%clk 0:50:57]}
28. Ke3 {[%clk 0:27:08]}  Ke5 {[%clk 0:47:18]} 29. b3 {[%clk 0:23:14]}  g5 {[%clk 0:45:45]} 30. Be8 {[%clk 0:21:05]}  h6 {[%clk 0:44:26]}
31. Bh5 {[%clk 0:20:28]}  b6 {[%clk 0:43:25]} 32. Bf3 {[%clk 0:20:23]}  Rd7 {[%clk 0:40:20]} 33. Na4 {[%clk 0:17:23]}  Rd4 {[%clk 0:39:03]}
34. Nxb6 {[%clk 0:16:57]}  g4 {[%clk 0:39:27]} 35. Bxg4 {[%clk 0:16:02]}  Rxe4+ {[%clk 0:39:49]} 36. Kf3 {[%clk 0:16:25]}  Rd4 {[%clk 0:40:11]}
37. b4 {[%clk 0:12:23]}  Rd3+ {[%clk 0:40:15]} 38. Kf2 {[%clk 0:07:58]}  Kd6 {[%clk 0:27:12]} 39. Na4 {[%clk 0:07:36]}  Rxa3 {[%clk 0:25:20]}
40. Nxc5 {[%clk 0:07:10]}  Ra2+ {[%clk 0:24:31]} 41. Kf3 {[%clk 0:05:29]}  Rb2 {[%clk 0:20:46]} 42. Nd3 {[%clk 0:01:55]}  Rb3 {[%clk 0:20:55]}
43. Ke4 {[%clk 0:02:04]}  Rb1 {[%clk 0:16:12]} 44. Kd4 {[%clk 0:01:04]}  Rg1 {[%clk 0:14:25]} 45. Bf3 {[%clk 0:01:09]}  Rh1 {[%clk 0:13:48]}
46. h3 {[%clk 0:01:25]}  Rb1 {[%clk 0:13:07]} 47. b5 {[%clk 0:01:11]}  Rb3 {[%clk 0:12:21]} 48. c5+ {[%clk 0:01:22]}  Kc7 {[%clk 0:12:39]}
49. b6+ {[%clk 0:01:28]}  Kb8 {[%clk 0:12:42]} 50. Kc4 {[%clk 0:01:10]}  Rb1 {[%clk 0:12:51]} 51. Nb4 {[%clk 0:01:25]} 1-0

[Event "Irish Championship 2026"]
[Site "Talbot Hotel Stillorgan, Co.Dublin, IE"]
[Date "2026.08.08"]
[Round "8"]
[White "Jessel, Stephen"]
[Black "Tureshbayev, Anuar"]
[Result "1-0"]
[Board "61"]
[TimeControl "40/5400+30:1800+30"]
[WhiteFideId "628859"]
[BlackFideId "651081709"]
[WhiteElo "2364"]
[BlackElo "2250"]
[WhiteTitle "FM"]
[BlackTitle "FM"]
[WhiteClock "0:05:12"]
[BlackClock "0:01:57"]
[Variant "Standard"]
[EndDate "2026.08.08"]
[EndTime "19:05:33"]

1. Nf3 {[%clk 1:30:53]}  d5 {[%clk 1:30:57]} 2. c4 {[%clk 1:30:48]}  d4 {[%clk 1:31:24]} 3. b4 {[%clk 1:30:35]}  f6 {[%clk 1:31:51]}
4. Na3 {[%clk 1:30:02]}  e5 {[%clk 1:32:15]} 5. Nc2 {[%clk 1:30:17]}  c5 {[%clk 1:32:43]} 6. bxc5 {[%clk 1:30:20]}  Bxc5 {[%clk 1:33:06]}
7. d3 {[%clk 1:30:38]}  Nc6 {[%clk 1:33:12]} 8. g3 {[%clk 1:30:28]}  Nge7 {[%clk 1:30:58]} 9. Bg2 {[%clk 1:30:43]}  h5 {[%clk 1:19:27]}
10. Rb1 {[%clk 1:22:08]}  Nf5 {[%clk 1:15:37]} 11. h4 {[%clk 1:16:37]}  Qc7 {[%clk 1:05:28]} 12. Nd2 {[%clk 1:13:35]}  Be6 {[%clk 1:00:49]}
13. Ne4 {[%clk 1:02:03]}  Be7 {[%clk 1:00:32]} 14. Qd2 {[%clk 0:59:31]}  Nd6 {[%clk 0:51:48]} 15. Nxd6+ {[%clk 0:47:46]}  Bxd6 {[%clk 0:52:13]}
16. Ba3 {[%clk 0:47:00]}  Bxa3 {[%clk 0:52:07]} 17. Nxa3 {[%clk 0:47:21]}  O-O {[%clk 0:51:34]} 18. O-O {[%clk 0:43:31]}  Rab8 {[%clk 0:44:23]}
19. Rfc1 {[%clk 0:36:18]}  Qe7 {[%clk 0:28:43]} 20. Nc2 {[%clk 0:27:29]}  Rbc8 {[%clk 0:26:44]} 21. Nb4 {[%clk 0:24:47]}  Nxb4 {[%clk 0:26:50]}
22. Qxb4 {[%clk 0:25:01]}  Qxb4 {[%clk 0:27:08]} 23. Rxb4 {[%clk 0:25:20]}  b6 {[%clk 0:27:29]} 24. Rb5 {[%clk 0:19:17]}  Bd7 {[%clk 0:27:26]}
25. Rd5 {[%clk 0:14:47]}  Be6 {[%clk 0:24:13]} 26. Rd6 {[%clk 0:12:41]}  Kf7 {[%clk 0:24:07]} 27. Bd5 {[%clk 0:12:09]}  Bxd5 {[%clk 0:24:33]}
28. Rxd5 {[%clk 0:12:34]}  Rfd8 {[%clk 0:24:14]} 29. Rb5 {[%clk 0:12:20]}  Ke6 {[%clk 0:22:40]} 30. a4 {[%clk 0:09:32]}  Rd6 {[%clk 0:09:16]}
31. Rcb1 {[%clk 0:09:00]}  Rcc6 {[%clk 0:09:00]} 32. a5 {[%clk 0:05:36]}  bxa5 {[%clk 0:08:26]} 33. Rxa5 {[%clk 0:05:24]}  Ra6 {[%clk 0:08:32]}
34. Rba1 {[%clk 0:04:56]}  Rxa5 {[%clk 0:08:58]} 35. Rxa5 {[%clk 0:05:20]}  Rd7 {[%clk 0:08:24]} 36. f4 {[%clk 0:04:30]}  Kf5 {[%clk 0:08:09]}
37. Kf2 {[%clk 0:04:00]}  Re7 {[%clk 0:05:51]} 38. Kf3 {[%clk 0:04:03]}  Rd7 {[%clk 0:05:42]} 39. Ra6 {[%clk 0:00:41]}  Re7 {[%clk 0:00:39]}
40. Ra5 {[%clk 0:00:38]}  Rd7 {[%clk 0:00:41]} 41. Ra6 {[%clk 0:19:18]}  Re7 {[%clk 0:26:32]} 42. Rd6 {[%clk 0:16:44]}  Rb7 {[%clk 0:14:49]}
43. Rd8 {[%clk 0:15:35]}  Rb3 {[%clk 0:09:14]} 44. fxe5 {[%clk 0:12:52]}  fxe5 {[%clk 0:09:40]} 45. Rf8+ {[%clk 0:12:47]}  Ke6 {[%clk 0:10:06]}
46. Re8+ {[%clk 0:08:52]}  Kf5 {[%clk 0:07:36]} 47. Re7 {[%clk 0:08:12]}  a6 {[%clk 0:07:19]} 48. Rf7+ {[%clk 0:05:10]}  Kg6 {[%clk 0:07:32]}
49. Ra7 {[%clk 0:05:25]}  Kf5 {[%clk 0:07:21]} 50. Kf2 {[%clk 0:03:56]}  g5 {[%clk 0:04:53]} 51. hxg5 {[%clk 0:03:46]}  Kxg5 {[%clk 0:03:09]}
52. Rxa6 {[%clk 0:04:04]}  e4 {[%clk 0:01:54]} 53. dxe4 {[%clk 0:04:05]}  Rc3 {[%clk 0:02:16]} 54. Rc6 {[%clk 0:03:56]}  Re3 {[%clk 0:02:05]}
55. Rd6 {[%clk 0:02:17]}  Rxe4 {[%clk 0:02:27]} 56. Rd5+ {[%clk 0:02:12]}  Kg6 {[%clk 0:02:26]} 57. c5 {[%clk 0:02:23]}  h4 {[%clk 0:01:33]}
58. gxh4 {[%clk 0:02:45]}  Rxh4 {[%clk 0:02:01]} 59. c6 {[%clk 0:02:42]}  Rf4+ {[%clk 0:02:24]} 60. Ke1 {[%clk 0:01:15]}  Rf6 {[%clk 0:02:52]}
61. c7 {[%clk 0:01:20]}  Rc6 {[%clk 0:03:20]} 62. Rd6+ {[%clk 0:01:36]}  Rxd6 {[%clk 0:03:48]} 63. c8=Q {[%clk 0:01:56]}  Kf6 {[%clk 0:04:08]}
64. Qe8 {[%clk 0:01:48]}  d3 {[%clk 0:04:04]} 65. e3 {[%clk 0:01:47]}  d2+ {[%clk 0:04:05]} 66. Kd1 {[%clk 0:02:11]}  Kf5 {[%clk 0:04:20]}
67. e4+ {[%clk 0:01:41]}  Kf4 {[%clk 0:04:44]} 68. Qf8+ {[%clk 0:01:40]}  Ke5 {[%clk 0:05:12]} 69. Qf5+ {[%clk 0:01:57]} 1-0

[Event "Irish Championship 2026"]
[Site "Talbot Hotel Stillorgan, Co.Dublin, IE"]
[Date "2026.08.08"]
[Round "8"]
[White "Collins, Adam"]
[Black "Jacob Flynn"]
[Result "1-0"]
[Board "62"]
[TimeControl "40/5400+30:1800+30"]
[WhiteFideId "2512300"]
[WhiteElo "2340"]
[BlackElo "2289"]
[WhiteTitle "FM"]
[WhiteClock "0:19:20"]
[BlackClock "0:12:06"]
[Variant "Standard"]
[EndDate "2026.08.08"]
[EndTime "18:31:48"]

1. d4 {[%clk 1:30:49]}  d5 {[%clk 1:29:21]} 2. Nf3 {[%clk 1:30:58]}  c5 {[%clk 1:29:40]} 3. dxc5 {[%clk 1:31:18]}  e6 {[%clk 1:29:15]}
4. Be3 {[%clk 1:31:37]}  Nf6 {[%clk 1:26:19]} 5. c3 {[%clk 1:29:43]}  Qc7 {[%clk 1:22:35]} 6. b4 {[%clk 1:21:41]}  a5 {[%clk 1:09:03]}
7. a3 {[%clk 0:53:43]}  h6 {[%clk 1:03:13]} 8. g3 {[%clk 0:52:30]}  e5 {[%clk 1:00:56]} 9. Bg2 {[%clk 0:50:27]}  Be6 {[%clk 0:58:16]}
10. h3 {[%clk 0:43:35]}  Be7 {[%clk 0:52:35]} 11. Nbd2 {[%clk 0:42:10]}  O-O {[%clk 0:49:51]} 12. O-O {[%clk 0:41:33]}  Ne4 {[%clk 0:45:41]}
13. Qc2 {[%clk 0:32:12]}  f5 {[%clk 0:45:22]} 14. Ne1 {[%clk 0:31:16]}  Nf6 {[%clk 0:35:41]} 15. Nd3 {[%clk 0:28:14]}  Nbd7 {[%clk 0:31:58]}
16. f4 {[%clk 0:25:26]}  e4 {[%clk 0:27:02]} 17. Nf2 {[%clk 0:24:53]}  Nh5 {[%clk 0:27:12]} 18. Nh1 {[%clk 0:25:03]}  g5 {[%clk 0:26:32]}
19. Nb3 {[%clk 0:24:41]}  gxf4 {[%clk 0:22:20]} 20. Bxf4 {[%clk 0:24:58]}  Nxf4 {[%clk 0:22:41]} 21. gxf4 {[%clk 0:24:41]}  Nf6 {[%clk 0:22:32]}
22. Nd4 {[%clk 0:24:53]}  Bd7 {[%clk 0:23:01]} 23. Ng3 {[%clk 0:24:45]}  Qc8 {[%clk 0:22:42]} 24. e3 {[%clk 0:24:20]}  Kh7 {[%clk 0:23:11]}
25. Kh2 {[%clk 0:21:35]}  Rg8 {[%clk 0:23:23]} 26. Rg1 {[%clk 0:20:51]}  h5 {[%clk 0:18:51]} 27. Qf2 {[%clk 0:21:01]}  Ra6 {[%clk 0:09:13]}
28. b5 {[%clk 0:19:49]}  Ra8 {[%clk 0:09:25]} 29. c6 {[%clk 0:20:03]}  bxc6 {[%clk 0:09:46]} 30. bxc6 {[%clk 0:20:31]}  Bxc6 {[%clk 0:08:43]}
31. Ngxf5 {[%clk 0:20:42]}  Bd8 {[%clk 0:07:28]} 32. Bh1 {[%clk 0:20:22]}  Bd7 {[%clk 0:07:57]} 33. Rxg8 {[%clk 0:20:18]}  Nxg8 {[%clk 0:08:14]}
34. Nd6 {[%clk 0:19:06]}  Qxc3 {[%clk 0:07:55]} 35. Rg1 {[%clk 0:18:54]}  Rb8 {[%clk 0:07:26]} 36. Qg2 {[%clk 0:16:48]}  Bg4 {[%clk 0:06:01]}
37. N6b5 {[%clk 0:12:46]}  Qxe3 {[%clk 0:06:18]} 38. hxg4 {[%clk 0:13:01]}  Nh6 {[%clk 0:05:28]} 39. gxh5 {[%clk 0:12:02]}  Qxf4+ {[%clk 0:05:27]}
40. Qg3 {[%clk 0:12:23]}  Ng4+ {[%clk 0:03:55]} 41. Kh3 {[%clk 0:10:59]}  Nf2+ {[%clk 0:02:47]} 42. Kg2 {[%clk 0:10:10]}  Qxg3+ {[%clk 0:02:07]}
43. Kxg3 {[%clk 0:10:33]}  Nxh1+ {[%clk 0:02:12]} 44. Rxh1 {[%clk 0:10:56]}  Bf6 {[%clk 0:02:26]} 45. Kg4 {[%clk 0:10:31]}  Bxd4 {[%clk 0:02:23]}
46. Nxd4 {[%clk 0:10:55]}  Rb2 {[%clk 0:02:52]} 47. Kf4 {[%clk 0:08:49]}  Rd2 {[%clk 0:01:56]} 48. Nf5 {[%clk 0:27:18]}  Rd3 {[%clk 0:31:01]}
49. a4 {[%clk 0:27:20]}  Ra3 {[%clk 0:28:20]} 50. Rd1 {[%clk 0:27:11]}  Rxa4 {[%clk 0:26:38]} 51. Rxd5 {[%clk 0:27:24]}  Ra1 {[%clk 0:23:57]}
52. Rd7+ {[%clk 0:26:30]}  Kg8 {[%clk 0:21:21]} 53. Kxe4 {[%clk 0:25:46]}  a4 {[%clk 0:19:42]} 54. Ke5 {[%clk 0:21:38]}  a3 {[%clk 0:18:56]}
55. Kf6 {[%clk 0:21:52]}  Rh1 {[%clk 0:14:39]} 56. Ra7 {[%clk 0:22:01]}  Ra1 {[%clk 0:12:29]} 57. Kg6 {[%clk 0:20:48]}  Rg1+ {[%clk 0:12:51]}
58. Kh6 {[%clk 0:20:42]}  Ra1 {[%clk 0:12:58]} 59. Nh4 {[%clk 0:19:02]}  Kf8 {[%clk 0:11:36]} 60. Ng6+ {[%clk 0:19:15]}  Ke8 {[%clk 0:12:06]}
61. Kg7 {[%clk 0:19:20]} 1-0

[Event "Irish Championship 2026"]
[Site "Talbot Hotel Stillorgan, Co.Dublin, IE"]
[Date "2026.08.08"]
[Round "8"]
[White "Barnes, Oliver"]
[Black "Melaugh, Shane"]
[Result "1-0"]
[Board "63"]
[TimeControl "40/5400+30:1800+30"]
[WhiteFideId "2517604"]
[BlackFideId "2509580"]
[WhiteElo "2107"]
[BlackElo "2157"]
[BlackTitle "FM"]
[WhiteClock "0:31:07"]
[BlackClock "0:29:02"]
[Variant "Standard"]
[EndDate "2026.08.08"]
[EndTime "16:35:14"]

1. d4 {[%clk 1:30:56]}  e6 {[%clk 0:55:33]} 2. Nf3 {[%clk 1:31:22]}  f5 {[%clk 0:55:58]} 3. Bf4 {[%clk 1:31:33]}  Nf6 {[%clk 0:56:11]}
4. e3 {[%clk 1:31:56]}  Be7 {[%clk 0:55:14]} 5. h3 {[%clk 1:32:00]}  O-O {[%clk 0:55:20]} 6. Be2 {[%clk 1:32:24]}  d6 {[%clk 0:55:44]}
7. c4 {[%clk 1:31:58]}  Qe8 {[%clk 0:53:12]} 8. Nc3 {[%clk 1:30:57]}  b6 {[%clk 0:53:19]} 9. O-O {[%clk 1:26:54]}  Bb7 {[%clk 0:53:44]}
10. b4 {[%clk 1:21:59]}  h6 {[%clk 0:50:40]} 11. Bh2 {[%clk 1:21:33]}  Nbd7 {[%clk 0:51:02]} 12. Nb5 {[%clk 1:11:40]}  Qc8 {[%clk 0:49:35]}
13. c5 {[%clk 1:04:56]}  Ne8 {[%clk 0:49:20]} 14. Rc1 {[%clk 0:54:56]}  bxc5 {[%clk 0:48:49]} 15. dxc5 {[%clk 0:54:30]}  dxc5 {[%clk 0:48:56]}
16. bxc5 {[%clk 0:49:09]}  Nxc5 {[%clk 0:49:12]} 17. Ne5 {[%clk 0:43:51]}  Bd6 {[%clk 0:37:44]} 18. Ng6 {[%clk 0:31:15]}  Rf7 {[%clk 0:37:59]}
19. Bxd6 {[%clk 0:30:08]}  cxd6 {[%clk 0:37:26]} 20. Nxd6 {[%clk 0:30:12]}  Qc6 {[%clk 0:26:57]} 21. Nxb7 {[%clk 0:30:34]}  Rxb7 {[%clk 0:27:23]}
22. Bf3 {[%clk 0:30:44]}  Qb6 {[%clk 0:27:49]} 23. Rxc5 {[%clk 0:30:28]}  Qxc5 {[%clk 0:28:10]} 24. Bxb7 {[%clk 0:30:49]}  Rb8 {[%clk 0:28:35]}
25. Qd7 {[%clk 0:29:56]}  Kh7 {[%clk 0:27:34]} 26. Nf4 {[%clk 0:29:48]}  Nf6 {[%clk 0:27:46]} 27. Qxg7+ {[%clk 0:29:59]}  Kxg7 {[%clk 0:28:11]}
28. Nxe6+ {[%clk 0:30:25]}  Kf7 {[%clk 0:28:35]} 29. Nxc5 {[%clk 0:30:50]}  Ke7 {[%clk 0:28:40]} 30. Rd1 {[%clk 0:30:58]}  a5 {[%clk 0:29:02]}
31. a4 {[%clk 0:31:07]} 1-0

[Event "Irish Championship 2026"]
[Site "Talbot Hotel Stillorgan, Co.Dublin, IE"]
[Date "2026.08.08"]
[Round "8"]
[White "Bartczak, Korneliusz"]
[Black "Venkatesan, Kavin"]
[Result "1/2-1/2"]
[Board "64"]
[TimeControl "40/5400+30:1800+30"]
[WhiteFideId "2523558"]
[BlackFideId "2512602"]
[WhiteElo "2062"]
[BlackElo "2297"]
[BlackTitle "FM"]
[WhiteClock "0:30:03"]
[BlackClock "0:09:40"]
[Variant "Standard"]
[EndDate "2026.08.08"]
[EndTime "18:04:33"]

1. d4 {[%clk 1:30:59]}  Nf6 {[%clk 1:26:23]} 2. Nf3 {[%clk 1:31:18]}  e6 {[%clk 1:25:48]} 3. e3 {[%clk 1:31:27]}  b6 {[%clk 1:25:17]}
4. Bd3 {[%clk 1:29:58]}  Bb7 {[%clk 1:25:45]} 5. O-O {[%clk 1:30:01]}  c5 {[%clk 1:24:16]} 6. c4 {[%clk 1:29:06]}  Be7 {[%clk 1:20:11]}
7. Nc3 {[%clk 1:29:04]}  cxd4 {[%clk 1:12:45]} 8. exd4 {[%clk 1:25:21]}  d6 {[%clk 1:11:55]} 9. d5 {[%clk 1:22:08]}  e5 {[%clk 1:12:15]}
10. Nd2 {[%clk 1:18:56]}  Nbd7 {[%clk 1:11:54]} 11. f4 {[%clk 1:17:09]}  Qc7 {[%clk 0:54:55]} 12. Qe2 {[%clk 1:04:05]}  a6 {[%clk 0:51:25]}
13. Nf3 {[%clk 1:00:51]}  O-O {[%clk 0:44:20]} 14. fxe5 {[%clk 0:44:54]}  dxe5 {[%clk 0:41:28]} 15. Ng5 {[%clk 0:42:52]}  g6 {[%clk 0:32:09]}
16. Be3 {[%clk 0:37:31]}  Rae8 {[%clk 0:28:49]} 17. Rae1 {[%clk 0:33:36]}  Kg7 {[%clk 0:22:48]} 18. Nce4 {[%clk 0:27:56]}  h6 {[%clk 0:17:16]}
19. Nxf6 {[%clk 0:26:35]}  Nxf6 {[%clk 0:17:02]} 20. Nh3 {[%clk 0:26:05]}  Bc5 {[%clk 0:14:17]} 21. Bxc5 {[%clk 0:20:47]}  Qxc5+ {[%clk 0:14:18]}
22. Qf2 {[%clk 0:20:20]}  Nd7 {[%clk 0:12:21]} 23. Qxc5 {[%clk 0:19:01]}  Nxc5 {[%clk 0:12:49]} 24. Nf2 {[%clk 0:19:18]}  f5 {[%clk 0:11:14]}
25. b4 {[%clk 0:19:04]}  Nd7 {[%clk 0:10:55]} 26. Rc1 {[%clk 0:18:49]}  Rc8 {[%clk 0:09:28]} 27. Rfd1 {[%clk 0:17:27]}  Rc7 {[%clk 0:08:12]}
28. Be2 {[%clk 0:14:59]}  e4 {[%clk 0:06:53]} 29. h4 {[%clk 0:08:44]}  Kf6 {[%clk 0:04:21]} 30. h5 {[%clk 0:07:28]}  g5 {[%clk 0:03:35]}
31. g4 {[%clk 0:07:07]}  e3 {[%clk 0:02:39]} 32. Nd3 {[%clk 0:07:36]}  f4 {[%clk 0:02:27]} 33. c5 {[%clk 0:06:30]}  Bxd5 {[%clk 0:02:18]}
34. Nxf4 {[%clk 0:06:41]}  gxf4 {[%clk 0:02:12]} 35. Rxd5 {[%clk 0:07:10]}  bxc5 {[%clk 0:02:11]} 36. bxc5 {[%clk 0:05:55]}  Ne5 {[%clk 0:02:11]}
37. Rf1 {[%clk 0:02:30]}  Ke6 {[%clk 0:02:24]} 38. Rd6+ {[%clk 0:02:46]}  Ke7 {[%clk 0:02:53]} 39. Rd5 {[%clk 0:02:11]}  Ke6 {[%clk 0:02:35]}
40. Rd6+ {[%clk 0:02:41]}  Ke7 {[%clk 0:02:59]} 41. Rd5 {[%clk 0:30:03]}  Ke6 {[%clk 0:09:40]} 1/2-1/2

[Event "Irish Championship 2026"]
[Site "Talbot Hotel Stillorgan, Co.Dublin, IE"]
[Date "2026.08.08"]
[Round "8"]
[White "Brozynski, Patryk"]
[Black "Woods, Yannick"]
[Result "1-0"]
[Board "65"]
[TimeControl "40/5400+30:1800+30"]
[WhiteFideId "2512700"]
[BlackFideId "2518384"]
[WhiteElo "2224"]
[BlackElo "2118"]
[WhiteTitle "CM"]
[WhiteClock "0:15:25"]
[BlackClock "0:07:40"]
[Variant "Standard"]
[EndDate "2026.08.08"]
[EndTime "17:06:40"]

1. e4 {[%clk 1:30:46]}  e6 {[%clk 1:30:54]} 2. Nf3 {[%clk 1:28:11]}  d5 {[%clk 1:30:42]} 3. Nc3 {[%clk 1:26:06]}  Nf6 {[%clk 1:25:43]}
4. e5 {[%clk 1:26:22]}  Nfd7 {[%clk 1:25:56]} 5. d4 {[%clk 1:26:37]}  c5 {[%clk 1:22:07]} 6. dxc5 {[%clk 1:27:03]}  Nc6 {[%clk 1:07:25]}
7. Bf4 {[%clk 1:27:25]}  Bxc5 {[%clk 1:05:45]} 8. Bd3 {[%clk 1:27:11]}  a6 {[%clk 1:00:45]} 9. O-O {[%clk 1:26:29]}  f6 {[%clk 0:58:46]}
10. exf6 {[%clk 1:15:57]}  Qxf6 {[%clk 0:51:49]} 11. Bg5 {[%clk 1:12:03]}  Qf7 {[%clk 0:51:44]} 12. Qe2 {[%clk 0:59:25]}  O-O {[%clk 0:47:32]}
13. Bh4 {[%clk 0:56:54]}  Nd4 {[%clk 0:47:08]} 14. Nxd4 {[%clk 0:44:37]}  Bxd4 {[%clk 0:47:10]} 15. Bxh7+ {[%clk 0:41:40]}  Kh8 {[%clk 0:36:07]}
16. Qg4 {[%clk 0:38:40]}  Bxc3 {[%clk 0:33:26]} 17. Bg6 {[%clk 0:38:27]}  Qf4 {[%clk 0:33:46]} 18. Qh5+ {[%clk 0:38:04]}  Qh6 {[%clk 0:34:14]}
19. Qxh6+ {[%clk 0:37:08]}  gxh6 {[%clk 0:34:42]} 20. bxc3 {[%clk 0:37:34]}  Ne5 {[%clk 0:17:45]} 21. Bh5 {[%clk 0:36:58]}  Bd7 {[%clk 0:17:28]}
22. Rfe1 {[%clk 0:33:46]}  Nc4 {[%clk 0:17:23]} 23. Rad1 {[%clk 0:29:26]}  Rf4 {[%clk 0:11:43]} 24. Bg3 {[%clk 0:24:32]}  Rf6 {[%clk 0:10:00]}
25. Rd4 {[%clk 0:21:53]}  Be8 {[%clk 0:09:34]} 26. Be2 {[%clk 0:20:28]}  Rg6 {[%clk 0:08:00]} 27. Bd3 {[%clk 0:20:31]}  Rg5 {[%clk 0:07:40]}
28. h4 {[%clk 0:15:25]} 1-0

[Event "Irish Championship 2026"]
[Site "Talbot Hotel Stillorgan, Co.Dublin, IE"]
[Date "2026.08.08"]
[Round "8"]
[White "Oisin O'Cuilleanain"]
[Black "Jason Liu"]
[Result "1/2-1/2"]
[Board "66"]
[TimeControl "40/5400+30:1800+30"]
[WhiteElo "2128"]
[BlackElo "2161"]
[WhiteClock "0:23:59"]
[BlackClock "0:30:07"]
[Variant "Standard"]
[EndDate "2026.08.08"]
[EndTime "17:55:28"]

1. c4 {[%clk 1:30:56]}  Nf6 {[%clk 1:30:35]} 2. Nf3 {[%clk 1:31:07]}  b6 {[%clk 1:29:34]} 3. g3 {[%clk 1:29:44]}  Bb7 {[%clk 1:29:55]}
4. Bg2 {[%clk 1:30:06]}  g6 {[%clk 1:30:01]} 5. O-O {[%clk 1:26:30]}  Bg7 {[%clk 1:30:15]} 6. d4 {[%clk 1:25:29]}  O-O {[%clk 1:30:25]}
7. b3 {[%clk 1:23:28]}  d6 {[%clk 1:22:03]} 8. Bb2 {[%clk 1:23:09]}  e6 {[%clk 1:21:09]} 9. Nc3 {[%clk 1:19:10]}  Ne4 {[%clk 1:15:30]}
10. Qc2 {[%clk 1:16:40]}  Nxc3 {[%clk 1:15:32]} 11. Bxc3 {[%clk 1:17:03]}  Nd7 {[%clk 1:14:12]} 12. Rfd1 {[%clk 1:14:04]}  Qe7 {[%clk 1:12:49]}
13. Rac1 {[%clk 1:09:00]}  Rad8 {[%clk 1:03:09]} 14. e4 {[%clk 1:01:24]}  c5 {[%clk 0:53:41]} 15. Qe2 {[%clk 0:57:22]}  Rfe8 {[%clk 0:34:38]}
16. a3 {[%clk 0:51:32]}  cxd4 {[%clk 0:25:38]} 17. Nxd4 {[%clk 0:48:45]}  a6 {[%clk 0:22:51]} 18. Qb2 {[%clk 0:44:22]}  Qf8 {[%clk 0:18:51]}
19. b4 {[%clk 0:41:57]}  Ne5 {[%clk 0:16:56]} 20. Qb3 {[%clk 0:41:36]}  Rc8 {[%clk 0:16:38]} 21. Bb2 {[%clk 0:41:17]}  Qe7 {[%clk 0:16:37]}
22. h3 {[%clk 0:40:07]}  Qc7 {[%clk 0:13:23]} 23. a4 {[%clk 0:28:20]}  Nxc4 {[%clk 0:12:07]} 24. Ba1 {[%clk 0:28:24]}  Bxd4 {[%clk 0:07:09]}
25. Rxd4 {[%clk 0:24:26]}  b5 {[%clk 0:06:11]} 26. Qc3 {[%clk 0:22:18]}  e5 {[%clk 0:06:13]} 27. Rdd1 {[%clk 0:22:34]}  Qe7 {[%clk 0:06:11]}
28. Qd3 {[%clk 0:22:25]}  Rc7 {[%clk 0:05:42]} 29. h4 {[%clk 0:21:21]}  Rb8 {[%clk 0:04:42]} 30. Rc3 {[%clk 0:19:27]}  Bc8 {[%clk 0:04:54]}
31. f4 {[%clk 0:18:03]}  Bg4 {[%clk 0:04:11]} 32. Rf1 {[%clk 0:16:53]}  h5 {[%clk 0:04:27]} 33. Rc2 {[%clk 0:14:57]}  Kh7 {[%clk 0:03:06]}
34. Rcf2 {[%clk 0:13:09]}  Qe8 {[%clk 0:02:53]} 35. a5 {[%clk 0:12:26]}  Rd8 {[%clk 0:02:36]} 36. f5 {[%clk 0:11:12]}  gxf5 {[%clk 0:02:18]}
37. exf5 {[%clk 0:07:59]}  f6 {[%clk 0:02:42]} 38. Bd5 {[%clk 0:07:50]}  Rdd7 {[%clk 0:02:50]} 39. Re1 {[%clk 0:07:22]}  Qf8 {[%clk 0:02:50]}
40. Re4 {[%clk 0:05:13]}  Rg7 {[%clk 0:02:26]} 41. Kh2 {[%clk 0:03:52]}  Qc8 {[%clk 0:00:35]} 42. Be6 {[%clk 0:00:55]}  Qb7 {[%clk 0:29:35]}
43. Bd5 {[%clk 0:29:32]}  Qc8 {[%clk 0:29:57]} 44. Be6 {[%clk 0:26:55]}  Qb7 {[%clk 0:30:07]} 45. Bd5 {[%clk 0:23:59]} 1/2-1/2